[Event "Live Chess"]
[Site "Chess.com"]
[Date "2023.05.21"]
[Round "-"]
[White "SupremeTactician"]
[Black "Singapourfeuj"]
[Result "1-0"]
[WhiteElo "2276"]
[BlackElo "2182"]
[TimeControl "300"]
[EndTime "2:15:08 PDT"]
[Termination "SupremeTactician won by resignation"]

1. e4 {[%clk 0:04:59.5]} 1... c5 {[%clk 0:04:58.5]} 2. Nf3 {[%clk 0:04:58.8]}
2... d6 {[%clk 0:04:57.6]} 3. d4 {[%clk 0:04:58.3]} 3... cxd4 {[%clk 0:04:57]}
4. Nxd4 {[%clk 0:04:58.2]} 4... Nf6 {[%clk 0:04:56.3]} 5. f3 {[%clk 0:04:57.8]}
5... a6 {[%clk 0:04:55.5]} 6. c4 {[%clk 0:04:57.2]} 6... e5 {[%clk 0:04:54.7]}
7. Nb3 {[%clk 0:04:56.4]} 7... Be7 {[%clk 0:04:54.1]} 8. Nc3 {[%clk 0:04:55.9]}
8... Be6 {[%clk 0:04:53.4]} 9. Be3 {[%clk 0:04:55.5]} 9... Nbd7 {[%clk
0:04:52.6]} 10. Rc1 {[%clk 0:04:55.1]} 10... Rc8 {[%clk 0:04:50.3]} 11. Nd5
{[%clk 0:04:54.5]} 11... Bxd5 {[%clk 0:04:49.4]} 12. cxd5 {[%clk 0:04:54.4]}
12... Rxc1 {[%clk 0:04:47.9]} 13. Qxc1 {[%clk 0:04:54.3]} 13... O-O {[%clk
0:04:46.9]} 14. Be2 {[%clk 0:04:53.7]} 14... Nh5 {[%clk 0:04:40.5]} 15. O-O
{[%clk 0:04:52.4]} 15... a5 {[%clk 0:04:34.7]} 16. f4 {[%clk 0:04:50.6]} 16...
exf4 {[%clk 0:04:33.3]} 17. Bxh5 {[%clk 0:04:49.2]} 17... fxe3 {[%clk 0:04:32]}
18. Qxe3 {[%clk 0:04:48.9]} 18... g6 {[%clk 0:04:30.6]} 19. Be2 {[%clk
0:04:45.9]} 19... a4 {[%clk 0:04:22.2]} 20. Nd4 {[%clk 0:04:45]} 20... Bf6
{[%clk 0:04:19.9]} 21. Nb5 {[%clk 0:04:33.7]} 21... Be5 {[%clk 0:04:17.2]} 22.
b3 {[%clk 0:04:30.6]} 22... axb3 {[%clk 0:04:15.2]} 23. axb3 {[%clk 0:04:29.7]}
23... Qa5 {[%clk 0:04:11.7]} 24. Kh1 {[%clk 0:04:19]} 24... Qb4 {[%clk
0:04:10.1]} 25. Rd1 {[%clk 0:03:48.3]} 25... Nc5 {[%clk 0:04:08.8]} 26. Bc4
{[%clk 0:03:45.8]} 26... b6 {[%clk 0:03:53.2]} 27. Qe1 {[%clk 0:03:35.3]} 27...
Qxe1+ {[%clk 0:03:49.1]} 28. Rxe1 {[%clk 0:03:35.2]} 28... Ra8 {[%clk
0:03:45.6]} 29. g3 {[%clk 0:03:30]} 29... Ra2 {[%clk 0:03:42]} 30. b4 {[%clk
0:03:27.9]} 30... Ra1 {[%clk 0:03:21.3]} 31. Rxa1 {[%clk 0:03:25.8]} 31... Bxa1
{[%clk 0:03:19.1]} 32. bxc5 {[%clk 0:03:25.4]} 32... bxc5 {[%clk 0:03:17.2]} 33.
Nxd6 {[%clk 0:03:24.5]} 33... Kf8 {[%clk 0:03:15.9]} 34. Nb7 {[%clk 0:03:20.9]}
34... Bd4 {[%clk 0:03:14]} 35. d6 {[%clk 0:03:20.2]} 35... Be5 {[%clk
0:03:10.8]} 36. d7 {[%clk 0:03:19.1]} 36... Bc7 {[%clk 0:03:08.3]} 37. d8=Q+
{[%clk 0:03:18.4]} 37... Bxd8 {[%clk 0:03:07.6]} 38. Nxd8 {[%clk 0:03:18.3]}
38... Ke7 {[%clk 0:03:06.7]} 39. Nb7 {[%clk 0:03:17.6]} 39... f5 {[%clk
0:03:04.9]} 40. exf5 {[%clk 0:03:16.7]} 40... gxf5 {[%clk 0:03:04]} 41. Nxc5
{[%clk 0:03:16.6]} 41... Kf6 {[%clk 0:03:02.7]} 42. Nd3 {[%clk 0:03:16.5]} 42...
Kg5 {[%clk 0:03:01.2]} 43. Kg2 {[%clk 0:03:16.2]} 43... h5 {[%clk 0:03:00.3]}
44. h4+ {[%clk 0:03:15.8]} 44... Kf6 {[%clk 0:02:57.6]} 45. Kf3 {[%clk
0:03:15.3]} 45... Kg6 {[%clk 0:02:56.5]} 46. Kf4 {[%clk 0:03:14.8]} 46... Kf6
{[%clk 0:02:55.7]} 47. Ne5 {[%clk 0:03:14.1]} 47... Kg7 {[%clk 0:02:53.4]} 48.
Kxf5 {[%clk 0:03:14]} 48... Kh6 {[%clk 0:02:52.3]} 49. Kf6 {[%clk 0:03:11.9]}
49... Kh7 {[%clk 0:02:50.8]} 50. Be6 {[%clk 0:02:59.7]} 50... Kh6 {[%clk
0:02:49.4]} 51. Nf7+ {[%clk 0:02:56.4]} 51... Kh7 {[%clk 0:02:48.3]} 52. Bf5+
{[%clk 0:02:55.5]} 52... Kg8 {[%clk 0:02:46.9]} 53. Nh6+ {[%clk 0:02:54]} 53...
Kh8 {[%clk 0:02:46]} 54. Kg5 {[%clk 0:02:53]} 54... Kg7 {[%clk 0:02:44.2]} 55.
Kxh5 {[%clk 0:02:52.3]} 55... Kf6 {[%clk 0:02:43.6]} 56. Bb1 {[%clk 0:02:49.4]}
56... Kg7 {[%clk 0:02:41.5]} 57. Nf5+ {[%clk 0:02:48.7]} 57... Kh8 {[%clk
0:02:40.2]} 58. Kg6 {[%clk 0:02:48.1]} 58... Kg8 {[%clk 0:02:39.1]} 59. Ne3
{[%clk 0:02:46.8]} 59... Kh8 {[%clk 0:02:37.9]} 60. h5 {[%clk 0:02:39.3]} 60...
Kg8 {[%clk 0:02:36.9]} 61. h6 {[%clk 0:02:38.7]} 61... Kh8 {[%clk 0:02:36]} 62.
Ng4 {[%clk 0:02:38.2]} 62... Kg8 {[%clk 0:02:35]} 63. Ne5 {[%clk 0:02:37.3]}
63... Kh8 {[%clk 0:02:33.9]} 64. Nf7+ {[%clk 0:02:36.7]} 64... Kg8 {[%clk
0:02:31.5]} 65. h7+ {[%clk 0:02:36.6]} 65... Kf8 {[%clk 0:02:30.6]} 66. Kf6
{[%clk 0:02:34.1]} 1-0

[Event "Live Chess"]
[Site "Chess.com"]
[Date "2023.05.21"]
[Round "-"]
[White "Ferrarifan27"]
[Black "lateforthesky"]
[Result "1-0"]
[WhiteElo "2103"]
[BlackElo "2119"]
[TimeControl "300"]
[EndTime "2:15:10 PDT"]
[Termination "Ferrarifan27 won by resignation"]

1. e4 {[%clk 0:04:58.9]} 1... c5 {[%clk 0:04:58.4]} 2. Nf3 {[%clk 0:04:57.3]}
2... Nf6 {[%clk 0:04:57.6]} 3. Nc3 {[%clk 0:04:54.3]} 3... d6 {[%clk 0:04:55.8]}
4. d4 {[%clk 0:04:52.7]} 4... cxd4 {[%clk 0:04:54.9]} 5. Nxd4 {[%clk 0:04:52.6]}
5... a6 {[%clk 0:04:54]} 6. Bg5 {[%clk 0:04:50.4]} 6... e6 {[%clk 0:04:51.4]} 7.
f4 {[%clk 0:04:47.3]} 7... Be7 {[%clk 0:04:49.2]} 8. Qf3 {[%clk 0:04:45.3]} 8...
h6 {[%clk 0:04:38.4]} 9. Bh4 {[%clk 0:04:38]} 9... g5 {[%clk 0:04:37.4]} 10.
fxg5 {[%clk 0:04:36.4]} 10... Nfd7 {[%clk 0:04:36.4]} 11. g6 {[%clk 0:04:31.2]}
11... Ne5 {[%clk 0:04:29.7]} 12. gxf7+ {[%clk 0:04:29.7]} 12... Kf8 {[%clk
0:04:22]} 13. Bxe7+ {[%clk 0:04:28.8]} 13... Qxe7 {[%clk 0:04:20.4]} 14. Qe3
{[%clk 0:04:21.7]} 14... Nbc6 {[%clk 0:04:18.2]} 15. Nxc6 {[%clk 0:04:20]} 15...
bxc6 {[%clk 0:04:16.5]} 16. Be2 {[%clk 0:04:15.2]} 16... Nxf7 {[%clk 0:04:01.3]}
17. O-O {[%clk 0:04:13.5]} 17... Kg7 {[%clk 0:03:50.7]} 18. Rf3 {[%clk 0:04:06]}
18... Ne5 {[%clk 0:03:48.1]} 19. Rg3+ {[%clk 0:04:04.7]} 19... Kh7 {[%clk
0:03:43.4]} 20. Rf1 {[%clk 0:03:59.1]} 20... Bd7 {[%clk 0:03:36.8]} 21. Rh3
{[%clk 0:03:53.3]} 21... Kg7 {[%clk 0:03:27.2]} 22. Qf4 {[%clk 0:03:37.5]} 22...
Raf8 {[%clk 0:03:14.1]} 23. Qg3+ {[%clk 0:03:34.7]} 23... Qg5 {[%clk 0:03:06.9]}
24. Qxg5+ {[%clk 0:03:31.1]} 24... hxg5 {[%clk 0:03:05]} 25. Rxh8 {[%clk
0:03:29.3]} 25... Rxh8 {[%clk 0:03:03]} 26. Bxa6 {[%clk 0:03:22.6]} 26... Ra8
{[%clk 0:02:42.4]} 27. Be2 {[%clk 0:03:17.7]} 27... Rf8 {[%clk 0:02:40.8]} 28.
Rxf8 {[%clk 0:03:15.3]} 28... Kxf8 {[%clk 0:02:38.6]} 29. Kf2 {[%clk 0:03:13]}
29... Ke7 {[%clk 0:02:34.2]} 30. Ke3 {[%clk 0:03:11.9]} 30... Be8 {[%clk
0:02:29.5]} 31. g3 {[%clk 0:03:10.4]} 31... Bg6 {[%clk 0:02:27.5]} 32. h4 {[%clk
0:03:09.1]} 32... gxh4 {[%clk 0:02:25.5]} 33. gxh4 {[%clk 0:03:09]} 33... c5
{[%clk 0:02:19.2]} 34. h5 {[%clk 0:03:07.7]} 34... Bh7 {[%clk 0:02:17.2]} 35. a4
{[%clk 0:03:04.6]} 35... Kd7 {[%clk 0:02:14.1]} 36. Kf4 {[%clk 0:03:01]} 36...
Nf7 {[%clk 0:01:41.3]} 37. Bb5+ {[%clk 0:02:50.6]} 37... Kc7 {[%clk 0:01:33.9]}
38. Be8 {[%clk 0:02:49.1]} 38... Ne5 {[%clk 0:01:31.1]} 39. Nb5+ {[%clk
0:02:48]} 39... Kd8 {[%clk 0:01:12.5]} 40. Nxd6 {[%clk 0:02:46.9]} 40... Nc4
{[%clk 0:00:57.1]} 41. Nxc4 {[%clk 0:02:44.8]} 41... Kxe8 {[%clk 0:00:55.9]} 42.
a5 {[%clk 0:02:40.1]} 42... Kd7 {[%clk 0:00:49]} 43. Ke5 {[%clk 0:02:33.6]}
43... Kc6 {[%clk 0:00:45.5]} 44. Nd2 {[%clk 0:02:32]} 44... Kb5 {[%clk
0:00:42.8]} 45. Kxe6 {[%clk 0:02:31.2]} 45... Kxa5 {[%clk 0:00:41.2]} 46. Kf7
{[%clk 0:02:29.6]} 46... c4 {[%clk 0:00:36.9]} 47. Nxc4+ {[%clk 0:02:26.3]}
47... Kb4 {[%clk 0:00:35.4]} 48. Nd2 {[%clk 0:02:22.8]} 1-0

[Event "Live Chess"]
[Site "Chess.com"]
[Date "2023.05.21"]
[Round "-"]
[White "bedsdrout"]
[Black "SteveValentine83"]
[Result "0-1"]
[WhiteElo "339"]
[BlackElo "1533"]
[TimeControl "300"]
[EndTime "2:15:10 PDT"]
[Termination "SteveValentine83 won by checkmate"]

1. Nf3 {[%clk 0:04:54.6]} 1... d5 {[%clk 0:04:57.3]} 2. Ng1 {[%clk 0:04:52.5]}
2... e5 {[%clk 0:04:56.2]} 3. Nf3 {[%clk 0:04:50.7]} 3... Nc6 {[%clk 0:04:55.1]}
4. Ng1 {[%clk 0:04:48.2]} 4... Nf6 {[%clk 0:04:53.7]} 5. Nc3 {[%clk 0:04:44.9]}
5... d4 {[%clk 0:04:52.3]} 6. Nb1 {[%clk 0:04:43.2]} 6... Bf5 {[%clk 0:04:49]}
7. Na3 {[%clk 0:04:34.1]} 7... Bxa3 {[%clk 0:04:47.1]} 8. bxa3 {[%clk
0:04:28.4]} 8... O-O {[%clk 0:04:46.2]} 9. Nf3 {[%clk 0:04:26.7]} 9... e4 {[%clk
0:04:39.2]} 10. Ng1 {[%clk 0:04:21.4]} 10... Re8 {[%clk 0:04:28.9]} 11. e3
{[%clk 0:04:08.5]} 11... d3 {[%clk 0:04:19.2]} 12. cxd3 {[%clk 0:03:42.3]} 12...
exd3 {[%clk 0:04:17.7]} 13. Qf3 {[%clk 0:03:36.7]} 13... Bg4 {[%clk 0:04:08.6]}
14. Qg3 {[%clk 0:03:30.6]} 14... Nd4 {[%clk 0:04:04.1]} 15. Bxd3 {[%clk
0:03:11.1]} 15... Bf5 {[%clk 0:03:19]} 16. e4 {[%clk 0:02:47]} 16... Bxe4 {[%clk
0:03:08.7]} 17. Bb1 {[%clk 0:02:35.4]} 17... Bxb1+ {[%clk 0:02:56]} 18. Ne2
{[%clk 0:01:55.3]} 18... Nxe2 {[%clk 0:02:48.4]} 19. Qh4 {[%clk 0:01:51.6]}
19... Nc3+ {[%clk 0:02:37.6]} 20. Kf1 {[%clk 0:01:16.1]} 20... Qd3+ {[%clk
0:02:35.5]} 21. Kg1 {[%clk 0:01:01.9]} 21... Re1# {[%clk 0:02:35.4]} 0-1

[Event "Live Chess"]
[Site "Chess.com"]
[Date "2023.05.21"]
[Round "-"]
[White "Reggie016"]
[Black "MJMykh"]
[Result "1-0"]
[WhiteElo "1088"]
[BlackElo "1142"]
[TimeControl "300"]
[EndTime "2:15:11 PDT"]
[Termination "Reggie016 won by checkmate"]

1. e4 {[%clk 0:04:59.2]} 1... e5 {[%clk 0:04:58.8]} 2. Nc3 {[%clk 0:04:58.2]}
2... Nc6 {[%clk 0:04:57.8]} 3. Bc4 {[%clk 0:04:57.2]} 3... Nf6 {[%clk 0:04:56]}
4. d3 {[%clk 0:04:56.1]} 4... h6 {[%clk 0:04:54.7]} 5. Nge2 {[%clk 0:04:54]}
5... Bb4 {[%clk 0:04:53]} 6. O-O {[%clk 0:04:52.4]} 6... Bxc3 {[%clk 0:04:52.3]}
7. bxc3 {[%clk 0:04:50.3]} 7... O-O {[%clk 0:04:52.2]} 8. f4 {[%clk 0:04:49.1]}
8... exf4 {[%clk 0:04:50.6]} 9. Bxf4 {[%clk 0:04:41.5]} 9... d6 {[%clk
0:04:49.6]} 10. Nd4 {[%clk 0:04:37.8]} 10... Nxd4 {[%clk 0:04:48.3]} 11. cxd4
{[%clk 0:04:37.7]} 11... Bg4 {[%clk 0:04:39.8]} 12. Qd2 {[%clk 0:04:33.2]} 12...
Kh7 {[%clk 0:04:36.4]} 13. h3 {[%clk 0:04:28]} 13... Bd7 {[%clk 0:04:34.4]} 14.
g4 {[%clk 0:04:23.1]} 14... b5 {[%clk 0:04:30.5]} 15. Bd5 {[%clk 0:04:10]} 15...
Nxd5 {[%clk 0:04:28.6]} 16. exd5 {[%clk 0:04:09.9]} 16... Qh4 {[%clk 0:04:20.6]}
17. Qg2 {[%clk 0:04:02.1]} 17... g5 {[%clk 0:04:11.5]} 18. Bg3 {[%clk
0:03:56.9]} 18... Qxg3 {[%clk 0:04:05]} 19. Qxg3 {[%clk 0:03:55.5]} 19... Kg6
{[%clk 0:04:04.3]} 20. Rae1 {[%clk 0:03:47]} 20... a5 {[%clk 0:04:00.4]} 21. Qf3
{[%clk 0:03:43]} 21... Rac8 {[%clk 0:03:48.4]} 22. Qf6+ {[%clk 0:03:38.2]} 22...
Kh7 {[%clk 0:03:46.6]} 23. Re7 {[%clk 0:03:32.3]} 23... Rcd8 {[%clk 0:03:42.3]}
24. Rxf7+ {[%clk 0:03:27.4]} 24... Rxf7 {[%clk 0:03:42]} 25. Qxf7+ {[%clk
0:03:27.3]} 25... Kh8 {[%clk 0:03:40.7]} 26. Rf6 {[%clk 0:03:25.5]} 26... Rf8
{[%clk 0:03:32]} 27. Rxh6# {[%clk 0:03:23.8]} 1-0

[Event "Live Chess"]
[Site "Chess.com"]
[Date "2023.05.21"]
[Round "-"]
[White "Tushinskiy"]
[Black "karimghalambaz"]
[Result "1-0"]
[WhiteElo "2151"]
[BlackElo "1279"]
[TimeControl "300"]
[EndTime "2:15:19 PDT"]
[Termination "Tushinskiy won on time"]

1. d4 {[%clk 0:04:58.6]} 1... e5 {[%clk 0:04:53]} 2. c3 {[%clk 0:04:58.5]} 2...
exd4 {[%clk 0:04:51.2]} 3. Nf3 {[%clk 0:04:58.4]} 3... dxc3 {[%clk 0:04:49.4]}
4. Nxc3 {[%clk 0:04:58.3]} 4... Nc6 {[%clk 0:04:44.8]} 5. Bf4 {[%clk 0:04:57.1]}
5... d6 {[%clk 0:04:42.5]} 6. e3 {[%clk 0:04:56.3]} 6... g6 {[%clk 0:04:41.1]}
7. Bd3 {[%clk 0:04:55.6]} 7... Bg7 {[%clk 0:04:39.5]} 8. O-O {[%clk 0:04:54.6]}
8... Nf6 {[%clk 0:04:37.1]} 9. Qe2 {[%clk 0:04:53.6]} 9... O-O {[%clk
0:04:35.4]} 10. Rad1 {[%clk 0:04:52.6]} 10... Nb4 {[%clk 0:04:31.6]} 11. Bb1
{[%clk 0:04:51]} 11... Be6 {[%clk 0:04:26]} 12. a3 {[%clk 0:04:49.4]} 12... Nc6
{[%clk 0:04:14.8]} 13. Rfe1 {[%clk 0:04:47.1]} 13... a6 {[%clk 0:04:13]} 14. Qc2
{[%clk 0:04:44.9]} 14... Bf5 {[%clk 0:04:04.6]} 15. e4 {[%clk 0:04:43.2]} 15...
Bd7 {[%clk 0:03:53.4]} 16. Bg3 {[%clk 0:04:40.8]} 16... Re8 {[%clk 0:03:49.2]}
17. Nd5 {[%clk 0:04:38.2]} 17... Nxd5 {[%clk 0:03:39.4]} 18. exd5 {[%clk
0:04:38.1]} 18... Ne5 {[%clk 0:03:35.4]} 19. Nxe5 {[%clk 0:04:34.3]} 19... dxe5
{[%clk 0:03:32.6]} 20. Ba2 {[%clk 0:04:30.5]} 20... Bf5 {[%clk 0:03:29.9]} 21.
Qb3 {[%clk 0:04:29.1]} 21... Rf8 {[%clk 0:03:13.5]} 22. Qxb7 {[%clk 0:04:24.6]}
22... Rb8 {[%clk 0:03:10.4]} 23. Qxa6 {[%clk 0:04:23.4]} 23... Rxb2 {[%clk
0:03:08.1]} 24. Bc4 {[%clk 0:04:22.4]} 24... e4 {[%clk 0:02:48.7]} 25. h3 {[%clk
0:04:19.4]} 25... Bc3 {[%clk 0:02:35.8]} 26. Re2 {[%clk 0:04:15.9]} 26... Rxe2
{[%clk 0:02:27.6]} 27. Bxe2 {[%clk 0:04:15.8]} 27... e3 {[%clk 0:02:14.9]} 28.
fxe3 {[%clk 0:04:05.6]} 28... Bg7 {[%clk 0:02:11.8]} 29. Bf3 {[%clk 0:04:00]}
29... Qe7 {[%clk 0:02:05.4]} 30. Bf2 {[%clk 0:03:51.2]} 30... Be5 {[%clk
0:01:57.8]} 31. e4 {[%clk 0:03:46.6]} 31... Bc8 {[%clk 0:01:52.5]} 32. Qd3
{[%clk 0:03:41.5]} 32... Bd6 {[%clk 0:01:50.2]} 33. a4 {[%clk 0:03:36.5]} 33...
Qe5 {[%clk 0:01:45.7]} 34. a5 {[%clk 0:03:33.7]} 34... Qh2+ {[%clk 0:01:42.4]}
35. Kf1 {[%clk 0:03:31.1]} 35... Qe5 {[%clk 0:01:27.5]} 36. a6 {[%clk
0:03:24.9]} 36... Qb2 {[%clk 0:01:10.1]} 37. Be2 {[%clk 0:03:15.2]} 37... Be5
{[%clk 0:00:50.5]} 38. a7 {[%clk 0:03:11.3]} 38... Qa2 {[%clk 0:00:47]} 39. Qb1
{[%clk 0:02:40.5]} 39... Qa5 {[%clk 0:00:30.6]} 40. Qb8 {[%clk 0:02:18.7]} 40...
Bd7 {[%clk 0:00:20]} 41. Rb1 {[%clk 0:01:53.9]} 41... Bxh3 {[%clk 0:00:10.4]}
42. gxh3 {[%clk 0:01:50.6]} 42... Qa4 {[%clk 0:00:05.2]} 43. Qxf8+ {[%clk
0:01:43]} 43... Kxf8 {[%clk 0:00:03.2]} 44. Rb8+ {[%clk 0:01:42.8]} 44... Kg7
{[%clk 0:00:00.8]} 45. a8=Q {[%clk 0:01:42.7]} 1-0

[Event "Live Chess"]
[Site "Chess.com"]
[Date "2023.05.21"]
[Round "-"]
[White "ShanthamGrarks"]
[Black "Doge_Dandolo"]
[Result "0-1"]
[WhiteElo "1965"]
[BlackElo "1878"]
[TimeControl "300"]
[EndTime "2:15:47 PDT"]
[Termination "Doge_Dandolo won by resignation"]

1. d4 {[%clk 0:04:56.8]} 1... d5 {[%clk 0:04:56.4]} 2. Nc3 {[%clk 0:04:54.8]}
2... Nf6 {[%clk 0:04:53.2]} 3. e4 {[%clk 0:04:52.8]} 3... dxe4 {[%clk
0:04:51.3]} 4. f3 {[%clk 0:04:51.8]} 4... e5 {[%clk 0:04:46.9]} 5. d5 {[%clk
0:04:49.4]} 5... Bb4 {[%clk 0:04:44.5]} 6. Bb5+ {[%clk 0:04:27.9]} 6... Bd7
{[%clk 0:04:37.7]} 7. Bxd7+ {[%clk 0:04:26.4]} 7... Nbxd7 {[%clk 0:04:34.9]} 8.
Bg5 {[%clk 0:04:22.7]} 8... O-O {[%clk 0:04:31.9]} 9. fxe4 {[%clk 0:04:17.5]}
9... Qe8 {[%clk 0:04:23.8]} 10. Qf3 {[%clk 0:04:09.5]} 10... h6 {[%clk
0:04:19.9]} 11. Bd2 {[%clk 0:04:05.7]} 11... Nc5 {[%clk 0:04:14.4]} 12. Bxh6
{[%clk 0:03:58.9]} 12... Nfxe4 {[%clk 0:04:08.6]} 13. Bxg7 {[%clk 0:03:40.7]}
13... Kxg7 {[%clk 0:04:03.9]} 14. Ne2 {[%clk 0:03:32.4]} 14... Nxc3 {[%clk
0:03:55.1]} 15. bxc3 {[%clk 0:03:30.5]} 15... Ba5 {[%clk 0:03:45.4]} 16. O-O
{[%clk 0:03:26.8]} 16... f6 {[%clk 0:03:42.4]} 17. Ng3 {[%clk 0:03:22.9]} 17...
Qd7 {[%clk 0:03:26.4]} 18. Qh5 {[%clk 0:03:20.1]} 18... Rh8 {[%clk 0:03:20.9]}
19. Nf5+ {[%clk 0:03:17.9]} 19... Kg8 {[%clk 0:03:15.3]} 20. Qg4+ {[%clk
0:03:06.7]} 20... Kf8 {[%clk 0:03:11.7]} 21. Qc4 {[%clk 0:02:43.4]} 21... Bb6
{[%clk 0:03:06.7]} 22. Kh1 {[%clk 0:02:38.8]} 22... Qh7 {[%clk 0:03:01.6]} 23.
h3 {[%clk 0:02:34.9]} 23... Rd8 {[%clk 0:02:41]} 24. d6 {[%clk 0:02:34]} 24...
cxd6 {[%clk 0:02:35.6]} 25. Rad1 {[%clk 0:02:33]} 25... Qf7 {[%clk 0:02:27.8]}
26. Qxf7+ {[%clk 0:02:27.1]} 26... Kxf7 {[%clk 0:02:26.2]} 27. Nxd6+ {[%clk
0:02:26.7]} 27... Ke6 {[%clk 0:02:23.4]} 28. Nc4 {[%clk 0:02:21.8]} 28... Ne4
{[%clk 0:02:16.6]} 29. Kh2 {[%clk 0:02:05.9]} 29... Nxc3 {[%clk 0:02:04.1]} 30.
Rde1 {[%clk 0:01:58.8]} 30... Rd4 {[%clk 0:01:50.8]} 31. Nxb6 {[%clk 0:01:57.1]}
31... axb6 {[%clk 0:01:49.2]} 32. Re3 {[%clk 0:01:51.6]} 32... Nd5 {[%clk
0:01:45]} 33. Ref3 {[%clk 0:01:48.6]} 33... Rg8 {[%clk 0:01:41.5]} 34. Kh1
{[%clk 0:01:43.6]} 34... Rd2 {[%clk 0:01:39.4]} 35. c4 {[%clk 0:01:38.7]} 35...
Rgxg2 {[%clk 0:01:26.2]} 36. cxd5+ {[%clk 0:01:36.1]} 36... Kxd5 {[%clk
0:01:24.4]} 37. Rb1 {[%clk 0:01:31]} 37... Rh2+ {[%clk 0:01:22.2]} 38. Kg1
{[%clk 0:01:29.2]} 38... Rxa2 {[%clk 0:01:19.1]} 39. Rxf6 {[%clk 0:01:22.7]}
39... Rag2+ {[%clk 0:01:11.5]} 40. Kf1 {[%clk 0:01:20.1]} 40... Rh1+ {[%clk
0:01:08.9]} 41. Kxg2 {[%clk 0:01:18.6]} 41... Rxb1 {[%clk 0:01:07.9]} 42. h4
{[%clk 0:01:17.6]} 42... Rb4 {[%clk 0:01:05.2]} 43. h5 {[%clk 0:01:16.7]} 43...
Rh4 {[%clk 0:01:03.7]} 44. h6 {[%clk 0:01:15.6]} 44... b5 {[%clk 0:01:01.9]} 45.
Kg3 {[%clk 0:01:13.5]} 45... Rh1 {[%clk 0:01:00.1]} 46. Kf2 {[%clk 0:01:12.4]}
46... b4 {[%clk 0:00:58]} 47. Rb6 {[%clk 0:01:09.9]} 47... Kc4 {[%clk
0:00:54.2]} 48. Rxb7 {[%clk 0:01:04.6]} 48... b3 {[%clk 0:00:53.2]} 49. Ke2
{[%clk 0:01:03.3]} 49... Kc3 {[%clk 0:00:52]} 50. Rc7+ {[%clk 0:01:01.9]} 50...
Kb2 {[%clk 0:00:50.3]} 51. h7 {[%clk 0:00:58.6]} 51... Ka1 {[%clk 0:00:48.5]}
52. Ra7+ {[%clk 0:00:57.7]} 52... Kb1 {[%clk 0:00:47.4]} 53. Kd2 {[%clk
0:00:55.8]} 53... b2 {[%clk 0:00:45.3]} 54. Kc3 {[%clk 0:00:45]} 54... Rh3+
{[%clk 0:00:42.6]} 55. Kc4 {[%clk 0:00:38]} 55... Kc1 {[%clk 0:00:40.6]} 56. Ra3
{[%clk 0:00:24.6]} 56... Rxh7 {[%clk 0:00:37]} 57. Rc3+ {[%clk 0:00:21]} 57...
Kb1 {[%clk 0:00:35.7]} 58. Kb3 {[%clk 0:00:18.6]} 58... Rb7+ {[%clk 0:00:32.2]}
59. Ka3 {[%clk 0:00:18.2]} 59... Ka1 {[%clk 0:00:29.1]} 60. Rc2 {[%clk
0:00:11.2]} 60... b1=Q {[%clk 0:00:24.5]} 61. Rb2 {[%clk 0:00:06.9]} 61... Qxb2+
{[%clk 0:00:22.7]} 0-1

[Event "Live Chess"]
[Site "Chess.com"]
[Date "2023.05.21"]
[Round "-"]
[White "PrinceCharming_1"]
[Black "Geomorph"]
[Result "1-0"]
[WhiteElo "1624"]
[BlackElo "1271"]
[TimeControl "300"]
[EndTime "2:16:12 PDT"]
[Termination "PrinceCharming_1 won by resignation"]

1. e4 {[%clk 0:04:58.5]} 1... e5 {[%clk 0:04:58.3]} 2. Nf3 {[%clk 0:04:57.8]}
2... Nc6 {[%clk 0:04:55.4]} 3. Bc4 {[%clk 0:04:56.3]} 3... Bc5 {[%clk
0:04:54.8]} 4. b4 {[%clk 0:04:54.9]} 4... Bb6 {[%clk 0:04:52.9]} 5. a4 {[%clk
0:04:53.6]} 5... a6 {[%clk 0:04:52.2]} 6. b5 {[%clk 0:04:52.1]} 6... axb5 {[%clk
0:04:50]} 7. Bxb5 {[%clk 0:04:52]} 7... Nd4 {[%clk 0:04:46.5]} 8. Nxd4 {[%clk
0:04:46.6]} 8... Bxd4 {[%clk 0:04:44.9]} 9. c3 {[%clk 0:04:45.8]} 9... Bb6
{[%clk 0:04:40.7]} 10. O-O {[%clk 0:04:44.9]} 10... Nf6 {[%clk 0:04:38.3]} 11.
Re1 {[%clk 0:04:43]} 11... O-O {[%clk 0:04:36.9]} 12. Bb2 {[%clk 0:04:41.4]}
12... d6 {[%clk 0:04:34.1]} 13. d4 {[%clk 0:04:40.3]} 13... c6 {[%clk
0:04:18.5]} 14. Bd3 {[%clk 0:04:37.7]} 14... Bg4 {[%clk 0:04:12.2]} 15. Qd2
{[%clk 0:04:32.4]} 15... Bd7 {[%clk 0:04:10.1]} 16. Na3 {[%clk 0:04:30.3]} 16...
Rxa4 {[%clk 0:04:00.6]} 17. Nc4 {[%clk 0:04:27.5]} 17... Rxa1 {[%clk 0:03:57.2]}
18. Bxa1 {[%clk 0:04:25.7]} 18... Ba7 {[%clk 0:03:51.7]} 19. Bb2 {[%clk
0:04:19.5]} 19... Qe7 {[%clk 0:03:31.8]} 20. Ra1 {[%clk 0:04:17.3]} 20... Bb8
{[%clk 0:03:24]} 21. Ra8 {[%clk 0:04:01.1]} 21... Be6 {[%clk 0:03:22.5]} 22. Ba3
{[%clk 0:03:44.2]} 22... Bxc4 {[%clk 0:03:15.1]} 23. Bxc4 {[%clk 0:03:43.2]}
23... Nxe4 {[%clk 0:03:11.5]} 24. Qe3 {[%clk 0:03:40.9]} 24... Nf6 {[%clk
0:03:06.4]} 25. g3 {[%clk 0:03:34.4]} 25... e4 {[%clk 0:02:54.8]} 26. Be2 {[%clk
0:03:26.5]} 26... b5 {[%clk 0:02:50]} 27. c4 {[%clk 0:03:23.4]} 27... Qb7 {[%clk
0:02:48]} 28. Ra5 {[%clk 0:03:16.5]} 28... b4 {[%clk 0:02:43.4]} 29. Qb3 {[%clk
0:03:10.9]} 29... c5 {[%clk 0:02:31.9]} 30. dxc5 {[%clk 0:03:09.8]} 30... dxc5
{[%clk 0:02:30.4]} 31. Rxc5 {[%clk 0:03:09.7]} 31... Bd6 {[%clk 0:02:21.6]} 32.
Rb5 {[%clk 0:03:07.2]} 32... Qe7 {[%clk 0:01:57.9]} 33. Bxb4 {[%clk 0:03:04.9]}
33... Bxb4 {[%clk 0:01:56.3]} 34. Rxb4 {[%clk 0:03:04.8]} 34... Qe5 {[%clk
0:01:48.2]} 35. Qe3 {[%clk 0:02:58.8]} 35... Qa5 {[%clk 0:01:41.4]} 36. Rb1
{[%clk 0:02:50.7]} 36... Re8 {[%clk 0:01:36.4]} 37. Kg2 {[%clk 0:02:49.2]} 37...
Qa8 {[%clk 0:01:34.4]} 38. c5 {[%clk 0:02:44.4]} 38... Nd5 {[%clk 0:01:31.8]}
39. Qd4 {[%clk 0:02:41.9]} 39... e3 {[%clk 0:01:20.6]} 40. Bf3 {[%clk
0:02:40.9]} 40... e2 {[%clk 0:01:15]} 41. Re1 {[%clk 0:02:38.6]} 41... Qa5
{[%clk 0:01:05.4]} 42. Rxe2 {[%clk 0:02:32.8]} 42... Rxe2 {[%clk 0:01:01.6]} 43.
Bxe2 {[%clk 0:02:31.8]} 43... Nf6 {[%clk 0:00:54.1]} 44. Bf3 {[%clk 0:02:28.5]}
44... h6 {[%clk 0:00:52.4]} 45. c6 {[%clk 0:02:27.6]} 45... Qc7 {[%clk
0:00:50.6]} 46. Qb4 {[%clk 0:02:22.1]} 46... Kh7 {[%clk 0:00:48.8]} 47. Qb7
{[%clk 0:02:21.3]} 47... Qa5 {[%clk 0:00:43.1]} 48. c7 {[%clk 0:02:19.1]} 1-0